bitfinex-derivatives/quotes_BTCF0:USTF0_20250218
["timestamp","ask_amount","ask_price","bid_price","bid_amount"]
[1739891049173,0.00015692,95609.0,95608.0,0.2092251]
[1739891049470,0.1563,95638.0,95608.0,0.3608]
[1739891049471,0.01364911,95626.0,95608.0,0.3608]
[1739891049671,0.20921999,95631.0,95627.0,0.2091817]
[1739891050065,0.00528342,95635.0,95632.0,0.2091705]
[1739891050371,0.00528342,95635.0,95634.0,0.3608]
[1739891050664,0.1465,95653.0,95634.0,0.3608]
[1739891050665,0.00010343,95644.0,95634.0,0.3608]
[1739891050870,0.00010343,95644.0,95643.0,0.3608]
[1739891051271,0.20932342,95644.0,95643.0,0.3608]
[1739891053671,0.20932342,95644.0,95643.0,0.3618]
[1739891055174,0.00010343,95644.0,95643.0,0.3618]
[1739891056666,0.00010343,95644.0,95643.0,0.8174]
[1739891056878,0.2090869,95672.0,95665.0,0.2090991]
[1739891057074,0.00530669,95680.0,95670.0,0.3608]
[1739891057279,0.2090873,95672.0,95670.0,0.3608]
[1739891057468,0.21078842,95671.0,95670.0,0.3608]
[1739891058368,0.21078842,95671.0,95670.0,0.5698895]
[1739891058876,0.00156843,95671.0,95670.0,0.5698895]
[1739891059070,0.155,95679.0,95670.0,0.3608]
[1739891059272,0.155,95679.0,95678.0,0.569872]
[1739891059673,0.36421999,95679.0,95678.0,0.569872]
[1739891060071,0.20921999,95679.0,95678.0,0.569872]
[1739891060470,0.1493,95696.0,95678.0,0.3618]
[1739891060775,0.2090349,95695.0,95693.0,0.3608]
[1739891061168,0.20921999,95694.0,95678.0,0.3618]
[1739891061368,0.17164713,95696.0,95684.0,0.00015675]
[1739891061663,0.2090557,95686.0,95684.0,0.00015675]
[1739891061869,0.20921999,95685.0,95684.0,0.00015675]
[1739891062478,0.2090699,95679.0,95678.0,0.3618]
[1739891062780,0.41828989,95679.0,95678.0,0.3618]
[1739891063275,0.20921999,95679.0,95678.0,0.001]
[1739891063465,0.41828989,95679.0,95678.0,0.001]
[1739891064181,0.2090786,95675.0,95674.0,0.00056]
[1739891064381,0.2090895,95670.0,95669.0,0.00015675]
[1739891064569,0.41830949,95670.0,95669.0,0.00015675]
[1739891064771,0.20921999,95670.0,95647.0,0.91212]
[1739891065067,0.20921999,95652.0,95647.0,0.91212]
[1739891065470,0.20921999,95652.0,95650.0,0.2091319]
[1739891067870,0.21021999,95652.0,95650.0,0.2091319]
[1739891068971,0.21021999,95652.0,95648.0,0.01754407]
[1739891070376,0.21021999,95652.0,95648.0,0.22668057]
[1739891070877,0.21021999,95652.0,95647.0,0.91212]
[1739891071086,0.41835759,95648.0,95647.0,0.91156]
[1739891071382,0.41835759,95648.0,95642.0,0.00015675]
[1739891071383,0.2091486,95643.0,95642.0,0.00015675]
[1739891071679,0.2091704,95633.0,95632.0,0.3608]
[1739891071876,0.41823364,95633.0,95632.0,0.3608]
[1739891072081,0.41723364,95633.0,95632.0,0.3608]
[1739891072470,0.41723364,95633.0,95631.0,0.00156845]
[1739891072781,0.2091901,95624.0,95623.0,0.00015683]
[1739891072981,0.2092257,95608.0,95596.0,0.5103]
[1739891073182,0.3608,95624.0,95596.0,0.5103]
[1739891073183,0.3608,95624.0,95604.0,0.3608]
[1739891073484,0.00156902,95637.0,95612.0,0.3608]
[1739891073781,0.3608,95628.0,95613.0,0.1489]
[1739891073985,0.20890641,95614.0,95604.0,0.3608]
[1739891074285,0.20890641,95605.0,95604.0,0.3648]
[1739891074792,0.20890641,95605.0,95604.0,0.3608]
[1739891075079,0.20590641,95605.0,95604.0,0.3608]
[1739891076783,0.2092106,95615.0,95604.0,0.3648]
[1739891076984,0.20590641,95606.0,95604.0,0.3648]
[1739891077487,0.3608,95620.0,95604.0,0.3648]
[1739891077684,0.20590641,95613.0,95610.0,0.12622544]
[1739891077980,0.00015683,95630.0,95629.0,0.2091792]
[1739891078189,0.20606324,95630.0,95629.0,0.2091792]
[1739891079876,0.20606324,95630.0,95629.0,0.22704295]
[1739891080282,0.20606324,95630.0,95624.0,0.3608]
[1739891080479,0.20590641,95625.0,95624.0,0.3608]
[1739891080983,0.00215683,95630.0,95628.0,0.2091809]
[1739891081285,0.00215683,95630.0,95629.0,0.1569]
[1739891081478,0.00015683,95630.0,95629.0,0.1569]
[1739891081679,0.20606324,95630.0,95629.0,0.1569]
[1739891082179,0.56686324,95630.0,95620.0,0.00015683]
[1739891082380,0.77590311,95621.0,95620.0,0.00015683]
[1739891084782,0.3608,95621.0,95614.0,0.91232]
[1739891084982,0.41495938,95615.0,95614.0,0.12296]
[1739891085284,0.2092364,95603.0,95601.0,0.37829348]
[1739891085485,0.20574958,95602.0,95601.0,0.58753228]
[1739891087085,0.2091938,95623.0,95619.0,0.2092011]
[1739891087481,0.20574958,95620.0,95619.0,0.2092011]
[1739891087685,0.20574958,95621.0,95620.0,0.2091989]
[1739891088089,0.00015683,95630.0,95615.0,0.3608]
[1739891088286,0.3608,95628.0,95620.0,0.12622544]
[1739891088488,0.20574958,95616.0,95615.0,0.3608]
[1739891089391,0.3693652,95627.0,95622.0,0.2091937]
[1739891089597,0.20574958,95619.0,95615.0,0.3608]
[1739891089894,0.20574958,95619.0,95618.0,0.2092032]
[1739891090090,0.00015683,95630.0,95615.0,0.3608]
[1739891090391,0.20574958,95620.0,95619.0,0.2092011]
[1739891090791,0.00015683,95630.0,95629.0,0.2091792]
[1739891090980,0.20590641,95630.0,95629.0,0.2091792]
[1739891091586,0.20590641,95630.0,95629.0,0.22626317]
[1739891092694,0.20590641,95630.0,95629.0,0.2091792]
[1739891093493,0.20590641,95630.0,95622.0,0.209194]
[1739891093798,0.20574958,95618.0,95616.0,0.3608]
[1739891094094,0.20574958,95618.0,95617.0,0.2092054]
[1739891095394,0.20574958,95618.0,95617.0,0.2102054]
[1739891095893,0.20574958,95618.0,95617.0,0.001]
[1739891096098,0.41495278,95618.0,95617.0,0.001]
[1739891096292,0.20574958,95618.0,95617.0,0.22806507]
[1739891099199,0.00015683,95630.0,95629.0,0.2091792]
[1739891099594,0.20590641,95630.0,95629.0,0.2091792]
[1739891099998,0.20590641,95630.0,95629.0,0.5699792]
[1739891106599,0.20590641,95630.0,95617.0,0.01785967]
[1739891106800,0.41495278,95618.0,95616.0,0.3608]
[1739891106997,0.20574958,95617.0,95616.0,0.3608]
[1739891108997,0.20474958,95617.0,95616.0,0.3608]
[1739891109309,0.2092164,95612.0,95611.0,0.00015683]
[1739891109496,0.41396598,95612.0,95611.0,0.00015683]
[1739891110503,0.41196598,95612.0,95611.0,0.00015683]
[1739891111207,0.41196598,95612.0,95611.0,0.00115683]
[1739891112205,0.41296598,95612.0,95611.0,0.00015683]
[1739891113901,0.41496598,95612.0,95611.0,0.00015683]
[1739891114900,0.41796598,95612.0,95611.0,0.00015683]
[1739891115404,0.41196598,95612.0,95611.0,0.00015683]
[1739891115712,0.41696598,95612.0,95611.0,0.00015683]
[1739891116812,0.2092273,95607.0,95606.0,0.91248]
[1739891116997,0.20459275,95607.0,95586.0,0.1497]
[1739891117203,0.2092585,95593.0,95586.0,0.1497]
[1739891117500,0.20459275,95587.0,95586.0,0.16758008]
[1739891117996,0.20459275,95587.0,95586.0,0.1497]
[1739891118612,0.20459275,95587.0,95586.0,0.16707356]
[1739891118812,0.20459275,95587.0,95586.0,0.1497]
[1739891119216,0.2092733,95586.0,95585.0,0.00156923]
[1739891119513,0.41386605,95586.0,95585.0,0.00156923]
[1739891121804,0.2092908,95578.0,95577.0,0.9120654]
[1739891122003,0.41388355,95578.0,95577.0,0.9120654]
[1739891122313,0.41388355,95578.0,95577.0,0.0001054]
[1739891124007,0.2093138,95568.0,95562.0,0.3608]
[1739891124210,0.20459275,95563.0,95562.0,0.3608]
[1739891125010,0.20159275,95563.0,95562.0,0.3608]
[1739891125208,0.20159275,95563.0,95562.0,0.5042]
[1739891125416,0.20159275,95563.0,95562.0,0.52049442]
[1739891125608,0.20159275,95563.0,95562.0,0.52749442]
[1739891126007,0.00015692,95572.0,95562.0,0.52049442]
[1739891126207,0.20159275,95565.0,95563.0,0.2093236]
[1739891126411,0.00015692,95572.0,95563.0,0.2093236]
[1739891126611,0.3574745,95586.0,95562.0,0.52049442]
[1739891126612,0.1482,95586.0,95571.0,0.3608]
[1739891126912,0.1482,95586.0,95577.0,0.2092914]
[1739891127418,0.20159275,95578.0,95577.0,0.2092914]
[1739891128112,0.209287,95580.0,95573.0,0.1549]
[1739891128425,0.20159275,95578.0,95573.0,0.1549]
[1739891128815,0.209287,95580.0,95573.0,0.1549]
[1739891129014,0.20459275,95578.0,95573.0,0.1549]
[1739891129614,0.20359275,95578.0,95576.0,0.2092931]
[1739891130617,0.002,95578.0,95576.0,0.2092931]
[1739891130818,0.002,95578.0,95577.0,0.1474]
[1739891131316,0.002,95578.0,95577.0,0.27028]
[1739891131523,0.002,95578.0,95577.0,0.4795727]
[1739891131720,0.20359275,95578.0,95577.0,0.1474]
[1739891132017,0.20159275,95578.0,95573.0,0.1549]
[1739891132316,0.2092898,95579.0,95577.0,0.002]
[1739891132716,0.2092898,95579.0,95577.0,0.001]
[1739891132717,0.20159275,95578.0,95577.0,0.001]
[1739891132922,0.20159275,95578.0,95577.0,0.01710193]
[1739891133119,0.20159275,95578.0,95577.0,0.22639493]
[1739891133326,0.20159275,95578.0,95577.0,0.22539493]
[1739891133509,0.20159275,95578.0,95577.0,0.209293]
[1739891133822,0.41088355,95578.0,95577.0,0.209293]
[1739891134020,0.20159275,95578.0,95577.0,0.209293]
[1739891134222,0.0024498,95590.0,95586.0,0.2092733]
[1739891134416,0.3608,95609.0,95586.0,0.2092733]
[1739891134417,0.00529391,95610.0,95586.0,0.3608]
[1739891134620,0.00529391,95610.0,95609.0,0.2092229]
[1739891134919,0.00088001,95619.0,95602.0,0.2986]
[1739891135115,0.20159275,95605.0,95603.0,0.3321161]
[1739891135313,0.20159275,95605.0,95603.0,0.2092361]
[1739891135513,0.003,95610.0,95603.0,0.2092361]
[1739891135824,0.20159275,95605.0,95603.0,0.2092361]
[1739891137418,0.20159275,95605.0,95602.0,0.3006]
[1739891137623,0.20159275,95604.0,95602.0,0.3006]
[1739891137919,0.20159275,95603.0,95602.0,0.2986]
[1739891138124,0.20159275,95603.0,95602.0,0.1565]
[1739891138625,0.20159275,95603.0,95601.0,0.3608]
[1739891138828,0.41083105,95602.0,95601.0,0.3608]
[1739891139829,0.20159275,95602.0,95601.0,0.3608]
[1739891141023,0.002,95603.0,95601.0,0.3608]
[1739891141326,0.2092146,95613.0,95607.0,0.209226]
[1739891141522,0.209217,95612.0,95607.0,0.209226]
[1739891141828,0.20159275,95608.0,95607.0,0.209226]
[1739891144718,0.20159275,95608.0,95601.0,0.3608]
[1739891144916,0.20159275,95604.0,95602.0,0.2092383]
[1739891145625,0.20159275,95604.0,95601.0,0.3608]
[1739891145828,0.0189272,95604.0,95601.0,0.3608]
[1739891146024,0.0189272,95604.0,95602.0,0.2092369]
[1739891146926,0.0209272,95604.0,95602.0,0.2092369]
[1739891147228,0.0189272,95603.0,95602.0,0.2092369]
[1739891147628,0.00015692,95614.0,95602.0,0.2092369]
[1739891147821,0.01639778,95642.0,95630.0,0.209177]
[1739891148021,0.00511389,95643.0,95641.0,0.2091529]
[1739891148223,0.00511389,95643.0,95642.0,0.5168]
[1739891148630,0.3608,95666.0,95664.0,0.2091012]
[1739891148927,0.3608,95666.0,95651.0,0.3608]
[1739891149126,0.2091175,95658.0,95655.0,0.00015683]
[1739891149326,0.0189272,95656.0,95655.0,0.00015683]
[1739891150027,0.36168001,95657.0,95642.0,0.001]
[1739891150318,0.01877037,95643.0,95642.0,0.001]
[1739891150723,0.24361163,95643.0,95642.0,0.001]
[1739891151229,0.2091682,95634.0,95633.0,0.00015683]
[1739891151432,0.5699682,95634.0,95633.0,0.00015683]
[1739891151628,0.58873857,95634.0,95633.0,0.00015683]
[1739891151925,0.58873857,95634.0,95613.0,0.91192]
[1739891151926,0.2092012,95619.0,95613.0,0.91192]
[1739891152125,0.01877037,95614.0,95613.0,0.91192]
[1739891152324,0.01877037,95614.0,95611.0,0.2092175]
[1739891152529,0.01877037,95608.0,95600.0,0.12615038]
[1739891152831,0.01877037,95608.0,95607.0,0.2092273]
[1739891153224,0.01877037,95608.0,95600.0,0.12615038]
[1739891153529,0.01877037,95607.0,95600.0,0.12615038]
[1739891153732,0.01877037,95607.0,95605.0,0.2092301]
[1739891153927,0.01877037,95607.0,95602.0,0.00156856]
[1739891154226,0.01877037,95603.0,95602.0,0.00156856]
[1739891154821,0.01877037,95603.0,95598.0,0.00015681]
[1739891155029,0.01877037,95599.0,95598.0,0.00015681]
[1739891155730,0.01777037,95599.0,95598.0,0.00015681]
[1739891156327,0.01777037,95599.0,95598.0,0.00215681]
[1739891157626,0.01777037,95599.0,95598.0,0.15685681]
[1739891158729,0.0522895,95639.0,95598.0,0.15685681]
[1739891158730,0.3608,95628.0,95598.0,0.15685681]
[1739891158931,0.01777037,95605.0,95604.0,0.2092339]
[1739891159342,0.2092124,95614.0,95607.0,0.2092269]
[1739891159840,0.01777037,95608.0,95601.0,0.2092401]
[1739891160134,0.01777037,95601.0,95600.0,0.2092426]
[1739891160440,0.01777037,95600.0,95599.0,0.3637448]
[1739891161133,0.00015683,95617.0,95616.0,0.2092076]
[1739891161342,0.05301422,95661.0,95616.0,0.7216]
[1739891161531,0.5124112,95661.0,95645.0,0.209143]
[1739891161727,0.1539,95660.0,95644.0,0.3608]
[1739891161927,0.1539,95660.0,95645.0,0.1461]
[1739891162138,0.1539,95660.0,95653.0,0.2091252]
[1739891162334,0.3630132,95660.0,95653.0,0.2091252]
[1739891162535,0.01777037,95654.0,95653.0,0.2091252]
[1739891162840,0.01777037,95654.0,95647.0,0.00015683]
[1739891163041,0.01777037,95648.0,95647.0,0.00015683]
[1739891163334,0.01777037,95652.0,95647.0,0.00015683]
[1739891163539,0.01777037,95652.0,95649.0,0.3608]
[1739891163734,0.03929,95662.0,95661.0,0.2091092]
[1739891163941,0.03929,95662.0,95661.0,0.5699092]
[1739891164343,0.05706037,95662.0,95661.0,0.3608]
[1739891165236,0.03929,95662.0,95661.0,0.3608]
[1739891165537,0.04429,95662.0,95661.0,0.3618]
[1739891166041,0.03929,95662.0,95661.0,0.3608]
[1739891166243,0.06106037,95662.0,95661.0,0.3618]
[1739891166639,0.04329,95662.0,95661.0,0.3618]
[1739891167945,0.04329,95662.0,95661.0,0.5174]
[1739891170938,0.04429,95662.0,95661.0,0.5174]
[1739891171941,0.06206037,95662.0,95661.0,0.5174]
[1739891172240,0.06206037,95662.0,95661.0,0.3618]
[1739891172439,0.27116737,95662.0,95661.0,0.001]
[1739891173144,0.2091376,95648.0,95647.0,0.00015683]
[1739891173341,0.22690797,95648.0,95647.0,0.00015683]
[1739891173739,0.37769815,95650.0,95632.0,0.1497]
[1739891173952,0.01761354,95637.0,95620.0,0.9126]
[1739891174155,0.01761354,95622.0,95620.0,0.91204]
[1739891174343,0.01761354,95622.0,95621.0,0.2091967]
[1739891174542,0.01761354,95622.0,95620.0,0.91204]
[1739891174543,0.2091672,95635.0,95626.0,0.2091849]
[1739891174756,0.01761354,95621.0,95620.0,0.9126]
[1739891174955,0.01761354,95621.0,95620.0,0.92774039]
[1739891175455,0.01761354,95621.0,95620.0,0.92974039]
[1739891175858,0.00015683,95640.0,95620.0,0.92974039]
[1739891176059,0.00015683,95640.0,95634.0,0.2091674]
[1739891176368,0.2091583,95639.0,95629.0,0.3608]
[1739891176561,0.01761354,95630.0,95629.0,0.3608]
[1739891177062,0.01761354,95630.0,95629.0,0.5699783]
[1739891177763,0.01861354,95630.0,95620.0,0.9126]
[1739891177964,0.01861354,95630.0,95619.0,0.1497]
[1739891177965,0.01761354,95621.0,95619.0,0.1497]
[1739891178159,0.01761354,95620.0,95611.0,0.00015681]
[1739891178463,0.22682334,95615.0,95611.0,0.00015681]
[1739891178861,0.22482334,95615.0,95611.0,0.00015681]
[1739891181157,0.22782334,95615.0,95611.0,0.00015681]
[1739891181564,0.22482334,95615.0,95611.0,0.20937491]
[1739891181761,0.22782334,95615.0,95611.0,0.00015681]
[1739891183368,0.22882334,95615.0,95611.0,0.00015681]
[1739891183669,0.22882334,95615.0,95613.0,0.2092137]
[1739891183860,0.22882334,95615.0,95611.0,0.00015681]
[1739891184667,0.22582334,95615.0,95611.0,0.00015681]
[1739891186973,0.24346519,95615.0,95611.0,0.00015681]
[1739891187170,0.03625539,95615.0,95611.0,0.00015681]
[1739891187366,0.03625539,95615.0,95614.0,0.21078075]
[1739891187567,0.02161354,95615.0,95614.0,0.21078075]
[1739891188372,0.05301422,95628.0,95627.0,0.2091835]
[1739891188765,0.07062776,95628.0,95627.0,0.2091835]
[1739891189168,0.07062776,95628.0,95621.0,0.3608]
[1739891189367,0.01761354,95622.0,95621.0,0.5699967]
[1739891189971,0.01761354,95622.0,95617.0,0.3081]
[1739891190276,0.2092082,95616.0,95605.0,0.37564805]
[1739891190472,0.01761354,95615.0,95605.0,0.37564805]
[1739891190972,0.17281354,95615.0,95605.0,0.58487795]
[1739891191172,0.53361354,95615.0,95605.0,0.01484805]
[1739891191365,0.53361354,95615.0,95590.0,0.18930028]
[1739891191366,0.53107666,95615.0,95573.0,0.91196]
[1739891191571,0.01761354,95591.0,95587.0,0.1444]
[1739891191775,0.01761354,95591.0,95589.0,0.2092657]
[1739891191973,0.3608,95603.0,95590.0,0.1493]
[1739891192174,0.01761354,95593.0,95590.0,0.1493]
[1739891192368,0.01761354,95593.0,95591.0,0.2092623]
[1739891194283,0.01761354,95593.0,95590.0,0.1493]
[1739891194284,0.00015692,95601.0,95600.0,0.2092426]
[1739891194481,0.05301422,95615.0,95613.0,0.2092134]
[1739891194776,0.05301422,95615.0,95600.0,0.3608]
[1739891194777,0.05301422,95635.0,95614.0,0.3608]
[1739891194972,0.00156904,95638.0,95614.0,0.3608]
[1739891194973,0.01761354,95627.0,95626.0,0.3608]
[1739891195175,0.00156904,95638.0,95626.0,0.3608]
[1739891195176,0.01761354,95632.0,95626.0,0.3608]
[1739891195375,0.00156904,95638.0,95637.0,0.2091617]
[1739891195573,0.01918258,95638.0,95637.0,0.2091617]
[1739891195778,0.01761354,95638.0,95637.0,0.2091617]
[1739891197473,0.02061354,95638.0,95637.0,0.2091617]
[1739891197672,0.02061354,95638.0,95637.0,0.3557617]
[1739891199775,0.02061354,95638.0,95637.0,0.1466]
[1739891200776,0.01961354,95638.0,95637.0,0.1466]
[1739891200989,0.002,95638.0,95637.0,0.3127]
[1739891201288,0.36095692,95647.0,95646.0,0.209142]
[1739891201768,0.01777046,95647.0,95646.0,0.209142]
[1739891201976,0.00156878,95658.0,95657.0,0.2091179]
[1739891202177,0.00156878,95658.0,95657.0,0.5699179]
[1739891202477,0.01918232,95658.0,95657.0,0.5699179]
[1739891203380,0.01918232,95658.0,95657.0,0.7357179]
[1739891203782,0.01918232,95658.0,95657.0,0.7367179]
[1739891204275,0.01761354,95658.0,95657.0,0.7357179]
[1739891204480,0.01761354,95658.0,95657.0,0.7367179]
[1739891204874,0.00088001,95665.0,95661.0,0.2091092]
[1739891205186,0.00015683,95667.0,95661.0,0.2091092]
[1739891206686,0.00015683,95667.0,95661.0,0.2101092]
[1739891207288,0.00015683,95667.0,95661.0,0.2091092]
[1739891207883,0.05690354,95662.0,95658.0,0.1597]
[1739891208075,0.01661354,95659.0,95658.0,0.1597]
[1739891208483,0.03929,95662.0,95661.0,0.2091092]
[1739891209379,0.05301422,95689.0,95658.0,0.1597]
[1739891209681,0.00096001,95682.0,95680.0,0.2090677]
[1739891209987,0.00156819,95693.0,95682.0,0.2090629]
[1739891210188,0.00156819,95693.0,95681.0,0.1538]
[1739891210385,0.01661354,95682.0,95681.0,0.37764095]
[1739891210786,0.00156819,95693.0,95692.0,0.2090415]
[1739891210985,0.01818173,95693.0,95692.0,0.2090415]
[1739891213283,0.2090448,95691.0,95689.0,0.3608]
[1739891213487,0.01661354,95690.0,95689.0,0.3608]
[1739891215592,0.01661354,95690.0,95681.0,0.16857545]
[1739891215795,0.01661354,95682.0,95678.0,0.2090713]
[1739891216091,0.004,95690.0,95677.0,0.20923103]
[1739891216092,0.01661354,95678.0,95677.0,0.20923103]
[1739891216496,0.004,95690.0,95688.0,0.2090501]
[1739891216689,0.004,95690.0,95689.0,0.3608]
[1739891217000,0.00156819,95693.0,95692.0,0.2090415]
[1739891217190,0.01661354,95690.0,95689.0,0.3608]
[1739891217388,0.01661354,95690.0,95679.0,0.3608]
[1739891217389,0.2090577,95685.0,95681.0,0.2090653]
[1739891217696,0.2090699,95679.0,95666.0,0.3608]
[1739891217895,0.01661354,95678.0,95674.0,0.01497131]
[1739891218194,0.01661354,95678.0,95676.0,0.2090753]
[1739891219700,0.3608,95686.0,95685.0,0.2090568]
[1739891220099,0.3608,95686.0,95674.0,0.01497131]
[1739891220100,0.58646884,95686.0,95674.0,0.01497131]
[1739891220400,0.01661354,95679.0,95678.0,0.209072]
[1739891220603,0.01661354,95683.0,95674.0,0.01497131]
[1739891220797,0.01661354,95683.0,95682.0,0.2090633]
[1739891221095,0.3648,95686.0,95685.0,0.2100568]
[1739891221295,0.004,95686.0,95685.0,0.001]
[1739891221491,0.02061354,95686.0,95685.0,0.12348]
[1739891221801,0.02061354,95686.0,95685.0,0.001]
[1739891221996,0.33341354,95686.0,95685.0,0.001]
[1739891222589,0.004,95679.0,95674.0,0.01485252]
[1739891222894,0.01661354,95678.0,95674.0,0.01485252]
[1739891223099,0.01661354,95678.0,95672.0,0.1614]
[1739891223399,0.01661354,95678.0,95672.0,0.3704848]
[1739891223599,0.17631354,95678.0,95674.0,0.2090807]
[1739891223797,0.17631354,95678.0,95675.0,0.2090785]
[1739891224195,0.01661354,95678.0,95676.0,0.2090752]
[1739891224507,0.004,95686.0,95685.0,0.2090568]
[1739891224694,0.004,95686.0,95685.0,0.5698568]
[1739891225400,0.1597,95706.0,95692.0,0.2090415]
[1739891225603,0.26204072,95699.0,95692.0,0.2090415]
[1739891225905,0.01818173,95693.0,95692.0,0.2090415]
[1739891226206,0.00156819,95693.0,95692.0,0.2090415]
[1739891226398,0.05301422,95699.0,95696.0,0.2090327]
[1739891226598,0.05301422,95699.0,95696.0,0.5698327]
[1739891228405,0.04016001,95710.0,95696.0,0.3608]
[1739891228611,0.0985881,95700.0,95699.0,0.2090262]
[1739891228909,0.03928,95710.0,95709.0,0.2090043]
[1739891229108,0.2089675,95726.0,95723.0,0.2089729]
[1739891229308,0.2089675,95726.0,95719.0,0.01494443]
[1739891229509,0.2089675,95726.0,95723.0,0.208972]
[1739891229810,0.01661354,95718.0,95717.0,0.5697869]
[1739891230115,0.01661354,95719.0,95718.0,0.2612308]
[1739891230506,0.004,95726.0,95725.0,0.2089694]
[1739891232718,0.20911195,95732.0,95727.0,0.208965]
[1739891233213,0.01818113,95728.0,95727.0,0.208965]
[1739891234118,0.3608,95736.0,95725.0,0.001]
[1739891234320,0.1558,95740.0,95730.0,0.3608]
[1739891234612,0.1558,95740.0,95737.0,0.2089426]
[1739891234809,0.1558,95740.0,95730.0,0.3608]
[1739891235004,0.2089419,95738.0,95733.0,0.2089503]
[1739891235206,0.1558,95740.0,95734.0,0.2089494]
[1739891235411,0.00525831,95743.0,95730.0,0.3608]
[1739891235621,0.00015675,95745.0,95743.0,0.208928]
[1739891236308,0.00015675,95745.0,95744.0,0.2089279]
[1739891237018,0.00415675,95745.0,95744.0,0.2089279]
[1739891237713,0.00415675,95745.0,95744.0,0.3611279]
[1739891240512,0.00156727,95767.0,95744.0,0.1522]
[1739891240719,0.00156727,95767.0,95766.0,0.2088799]
[1739891242121,0.00156727,95767.0,95766.0,0.22362894]
[1739891243117,0.21044497,95767.0,95766.0,0.01474904]
[1739891243321,0.2088887,95762.0,95761.0,0.3608]
[1739891243822,0.2088887,95762.0,95757.0,0.00015667]
[1739891243823,0.2088974,95758.0,95757.0,0.00015667]
[1739891244018,0.5696974,95758.0,95757.0,0.00015667]
[1739891245626,0.5696974,95758.0,95757.0,0.20905627]
[1739891245922,0.5696974,95758.0,95757.0,0.00015667]
[1739891246113,0.3608,95758.0,95757.0,0.20905627]
[1739891246922,0.5696974,95758.0,95757.0,0.00015667]
[1739891247627,0.5696974,95758.0,95757.0,0.20905627]
[1739891247924,0.5696974,95758.0,95757.0,0.00015667]
[1739891248819,0.56975351,95758.0,95757.0,0.00015667]
[1739891249825,0.36085611,95758.0,95757.0,0.21005627]
[1739891250026,0.56975351,95758.0,95757.0,0.21005627]
[1739891250628,0.56975351,95758.0,95757.0,0.00115667]
[1739891251225,0.56975351,95758.0,95757.0,0.00015667]
[1739891251532,0.2089378,95740.0,95733.0,0.3608]
[1739891251729,0.2089258,95745.0,95742.0,0.2089321]
[1739891252028,0.2089258,95745.0,95743.0,0.2089292]
[1739891252220,0.2089279,95744.0,95743.0,0.2089292]
[1739891252421,0.2089301,95743.0,95742.0,0.01410086]
[1739891252729,0.208934,95742.0,95741.0,0.2089345]
[1739891252929,0.5697214,95747.0,95746.0,0.2089236]
[1739891253226,0.2089111,95752.0,95749.0,0.2089168]
[1739891253428,0.2089148,95750.0,95749.0,0.2089168]
[1739891253628,0.2089257,95745.0,95744.0,0.01]
[1739891256127,0.3608,95750.0,95749.0,0.208917]
[1739891256331,0.00015667,95753.0,95752.0,0.2089105]
[1739891257435,0.20906497,95753.0,95752.0,0.2089105]
[1739891257726,0.00015667,95753.0,95752.0,0.2089105]
[1739891258425,0.20906497,95753.0,95752.0,0.2089105]
[1739891258630,0.2089236,95746.0,95745.0,0.1614]
[1739891258832,0.00015667,95753.0,95745.0,0.1614]
[1739891259023,0.2089174,95750.0,95749.0,0.2089167]
[1739891259424,0.2089236,95746.0,95745.0,0.1614]
[1739891259930,0.2089236,95746.0,95744.0,0.01]
[1739891259931,0.2089257,95745.0,95744.0,0.01]
[1739891260227,0.3700257,95745.0,95744.0,0.01]
[1739891261733,0.3608,95746.0,95744.0,0.01]
[1739891262035,0.00015667,95753.0,95752.0,0.2089105]
[1739891262534,0.20906497,95753.0,95752.0,0.2089105]
[1739891263931,0.00015667,95753.0,95747.0,0.2089209]
[1739891264137,0.208917,95749.0,95748.0,0.2089184]
[1739891264337,0.2089236,95746.0,95745.0,0.1557]
[1739891264635,0.5697236,95746.0,95745.0,0.3646257]
[1739891265323,0.5697236,95746.0,95745.0,0.1557]
[1739891265528,0.2089114,95752.0,95748.0,0.2089187]
[1739891265731,0.00015667,95753.0,95745.0,0.1557]
[1739891266035,0.00015667,95753.0,95750.0,0.2089148]
[1739891266232,0.2089236,95746.0,95745.0,0.3646253]
[1739891266439,0.1989236,95746.0,95745.0,0.3646253]
[1739891266730,0.2089257,95745.0,95744.0,0.01]
[1739891267129,0.5153257,95745.0,95744.0,0.01]
[1739891269435,0.2089257,95745.0,95744.0,0.01]
[1739891272843,0.00015667,95753.0,95752.0,0.2089105]
[1739891273035,0.20906497,95753.0,95747.0,0.2089207]
[1739891273241,0.3608,95754.0,95753.0,0.2089083]
[1739891276047,5.611e-05,95758.0,95757.0,0.2088996]
[1739891277352,0.19917723,95766.0,95752.0,0.3608]
[1739891277643,0.19917723,95766.0,95757.0,0.2088992]
[1739891277853,0.19917723,95766.0,95752.0,0.3608]
[1739891277854,0.19917723,95766.0,95756.0,0.2089011]
[1739891278145,0.2088983,95758.0,95756.0,0.2089011]
[1739891278342,0.5223,95757.0,95744.0,0.01]
[1739891278549,0.2089198,95748.0,95744.0,0.01]
[1739891278847,0.2089257,95745.0,95744.0,0.1322]
[1739891279044,0.2089257,95745.0,95744.0,0.2189279]
[1739891279439,0.2089156,95750.0,95749.0,0.2089161]
[1739891279755,0.66912,95757.0,95756.0,0.2089017]
[1739891279756,0.30832,95757.0,95756.0,0.2089017]
[1739891279943,0.3074,95757.0,95756.0,0.2089017]
[1739891280150,0.16,95765.0,95750.0,0.3608]
[1739891280343,0.208896,95759.0,95751.0,0.12216]
[1739891280647,0.3608,95755.0,95745.0,0.3055]
[1739891280841,0.2987,95764.0,95745.0,0.3055]
[1739891281038,0.5075843,95764.0,95763.0,0.2088865]
[1739891281438,0.2088963,95759.0,95758.0,0.2088971]
[1739891281644,0.2987,95764.0,95754.0,0.00015667]
[1739891281844,0.2987,95764.0,95754.0,0.20906277]
[1739891281845,0.5697039,95755.0,95754.0,0.20906277]
[1739891282652,0.3608,95755.0,95754.0,0.20906277]
[1739891282851,0.2088952,95760.0,95758.0,0.2088954]
[1739891283247,0.2088952,95759.0,95758.0,0.2088954]
[1739891286249,0.2089039,95755.0,95754.0,0.00015667]
[1739891286956,0.3663039,95755.0,95754.0,0.00015667]
[1739891288345,0.2089257,95745.0,95744.0,0.01]
[1739891288545,0.5697257,95745.0,95744.0,0.01]
[1739891289351,0.2089257,95745.0,95744.0,0.01]
[1739891290545,0.2089454,95736.0,95735.0,0.00015667]
[1739891290746,0.5697454,95736.0,95735.0,0.00015667]
[1739891291056,0.3608,95736.0,95714.0,0.16968346]
[1739891291253,0.2089793,95721.0,95714.0,0.16968346]
[1739891291442,0.3569812,95720.0,95714.0,0.1553]
[1739891291647,0.3096,95720.0,95714.0,0.1553]